[Event "*** Titled Tuesday 3|2 Blitz"]
[Site "Chess.com"]
[Date "2016.03.01"]
[Round "1"]
[White "Paralinch"]
[Black "FancyPlaySyndrome"]
[Result "1-0"]
[WhiteElo "2553"]
[BlackElo "2309"]
[TimeControl "180+2"]
[EndTime "11:01:36 PST"]
[Termination "Paralinch won by resignation"]

1. e4 {[%clk 0:03:01.4]} 1... c5 {[%clk 0:03:01]} 2. Nf3 {[%clk 0:03:01.8]} 2...
d6 {[%clk 0:03:01.5]} 3. d4 {[%clk 0:03:02.9]} 3... cxd4 {[%clk 0:03:03.4]} 4.
Nxd4 {[%clk 0:03:04.8]} 4... Nf6 {[%clk 0:03:04.7]} 5. Nc3 {[%clk 0:03:05.7]}
5... a6 {[%clk 0:03:05.1]} 6. Be3 {[%clk 0:03:05.7]} 6... e5 {[%clk 0:03:04.6]}
7. Nf3 {[%clk 0:03:06.7]} 7... Be7 {[%clk 0:03:00.8]} 8. Bc4 {[%clk 0:03:06.8]}
8... O-O {[%clk 0:02:54.2]} 9. O-O {[%clk 0:03:06.9]} 9... Nbd7 {[%clk
0:02:53.9]} 10. a4 {[%clk 0:02:52.8]} 10... b6 {[%clk 0:02:53.7]} 11. Nd5 {[%clk
0:02:50.1]} 11... Bb7 {[%clk 0:02:46.6]} 12. Qd3 {[%clk 0:02:46.4]} 12... Qc7
{[%clk 0:02:47.5]} 13. Nxc7 {[%clk 0:02:46.7]} 1-0

[Event "*** Titled Tuesday 3|2 Blitz"]
[Site "Chess.com"]
[Date "2016.03.01"]
[Round "1"]
[White "chorejason"]
[Black "Danirod"]
[Result "0-1"]
[WhiteElo "2088"]
[BlackElo "2387"]
[TimeControl "180+2"]
[EndTime "11:03:42 PST"]
[Termination "Danirod won by resignation"]

1. e4 {[%clk 0:02:57.4]} 1... c5 {[%clk 0:03:00.6]} 2. Nf3 {[%clk 0:02:58.2]}
2... g6 {[%clk 0:03:01.5]} 3. d4 {[%clk 0:02:59.1]} 3... cxd4 {[%clk 0:03:02.3]}
4. Nxd4 {[%clk 0:02:59.9]} 4... Bg7 {[%clk 0:03:03.3]} 5. Nc3 {[%clk 0:03:00.2]}
5... Nc6 {[%clk 0:03:04.4]} 6. Be3 {[%clk 0:02:52.6]} 6... Nf6 {[%clk
0:03:04.9]} 7. Bc4 {[%clk 0:02:52.6]} 7... Qa5 {[%clk 0:03:05.8]} 8. O-O {[%clk
0:02:52.1]} 8... O-O {[%clk 0:03:06.4]} 9. Bb3 {[%clk 0:02:48.8]} 9... d6 {[%clk
0:03:07.3]} 10. h3 {[%clk 0:02:47.2]} 10... Bd7 {[%clk 0:03:08.1]} 11. f4 {[%clk
0:02:48.4]} 11... Rac8 {[%clk 0:03:08.2]} 12. f5 {[%clk 0:02:47.7]} 12... Ne5
{[%clk 0:03:05.4]} 13. Nf3 {[%clk 0:02:27.7]} 13... Rxc3 {[%clk 0:02:50]} 14.
bxc3 {[%clk 0:02:25.7]} 14... Nxe4 {[%clk 0:02:49.9]} 15. fxg6 {[%clk
0:02:20.5]} 15... hxg6 {[%clk 0:02:48.9]} 16. Bd4 {[%clk 0:02:10.4]} 16... Nxc3
{[%clk 0:02:47.2]} 17. Nxe5 {[%clk 0:01:50.1]} 17... Nxd1 {[%clk 0:02:39.7]} 18.
Nxd7 {[%clk 0:01:27.6]} 18... Bxd4+ {[%clk 0:02:38]} 19. Kh2 {[%clk 0:01:27.5]}
0-1

[Event "*** Titled Tuesday 3|2 Blitz"]
[Site "Chess.com"]
[Date "2016.03.01"]
[Round "1"]
[White "alturas_pacificas"]
[Black "KamilPlichta"]
[Result "0-1"]
[WhiteElo "2175"]
[BlackElo "2436"]
[TimeControl "180+2"]
[EndTime "11:05:13 PST"]
[Termination "KamilPlichta won by checkmate"]

1. d4 {[%clk 0:02:35.6]} 1... g6 {[%clk 0:03:00.3]} 2. Bf4 {[%clk 0:02:35.7]}
2... Bg7 {[%clk 0:02:59.8]} 3. e3 {[%clk 0:02:36.3]} 3... d6 {[%clk 0:03:00.8]}
4. Nf3 {[%clk 0:02:37.3]} 4... Nd7 {[%clk 0:03:02.3]} 5. Be2 {[%clk 0:02:34]}
5... e5 {[%clk 0:03:03.9]} 6. dxe5 {[%clk 0:02:34.8]} 6... dxe5 {[%clk 0:03:05]}
7. Bg3 {[%clk 0:02:36]} 7... Qe7 {[%clk 0:03:04.7]} 8. O-O {[%clk 0:02:36.4]}
8... Nh6 {[%clk 0:03:05.5]} 9. c4 {[%clk 0:02:36.6]} 9... O-O {[%clk 0:03:06.4]}
10. Nc3 {[%clk 0:02:37.5]} 10... c6 {[%clk 0:03:06.7]} 11. Qd2 {[%clk
0:02:38.6]} 11... f5 {[%clk 0:03:06]} 12. Rfd1 {[%clk 0:02:38.4]} 12... Nf7
{[%clk 0:03:07.6]} 13. a3 {[%clk 0:02:23.4]} 13... g5 {[%clk 0:03:08.3]} 14. h3
{[%clk 0:02:16.1]} 14... f4 {[%clk 0:03:09.6]} 15. Bh2 {[%clk 0:02:11.4]} 15...
Nf6 {[%clk 0:03:09.7]} 16. exf4 {[%clk 0:02:08.2]} 16... gxf4 {[%clk 0:03:09.8]}
17. Bd3 {[%clk 0:02:04.3]} 17... a5 {[%clk 0:02:46.6]} 18. Re1 {[%clk
0:02:04.3]} 18... Qc7 {[%clk 0:02:47.6]} 19. Ne4 {[%clk 0:02:02]} 19... Kh8
{[%clk 0:02:42.2]} 20. c5 {[%clk 0:01:57.9]} 20... Nxe4 {[%clk 0:02:39.3]} 21.
Bxe4 {[%clk 0:01:58.9]} 21... Be6 {[%clk 0:02:40]} 22. b4 {[%clk 0:01:55.8]}
22... axb4 {[%clk 0:02:40.3]} 23. axb4 {[%clk 0:01:57.7]} 23... Rxa1 {[%clk
0:02:40.9]} 24. Rxa1 {[%clk 0:01:58.3]} 24... Rd8 {[%clk 0:02:42.5]} 25. Qc2
{[%clk 0:01:58.6]} 25... Bd5 {[%clk 0:02:34.4]} 26. Bxh7 {[%clk 0:01:56.7]}
26... e4 {[%clk 0:02:33.6]} 27. Bxe4 {[%clk 0:01:55.4]} 27... Bxe4 {[%clk
0:02:34.7]} 28. Qxe4 {[%clk 0:01:56.3]} 28... Bxa1 {[%clk 0:02:35.8]} 29. Bxf4
{[%clk 0:01:55.5]} 29... Qd7 {[%clk 0:02:24.8]} 30. Ne5 {[%clk 0:01:53.7]} 30...
Bxe5 {[%clk 0:02:25]} 31. Bxe5+ {[%clk 0:01:54.5]} 31... Nxe5 {[%clk 0:02:25.8]}
32. Qxe5+ {[%clk 0:01:55.6]} 32... Qg7 {[%clk 0:02:23.2]} 33. Qh5+ {[%clk
0:01:55.9]} 33... Kg8 {[%clk 0:02:24.8]} 34. Qe2 {[%clk 0:01:51.6]} 34... Qf6
{[%clk 0:02:20]} 35. Qg4+ {[%clk 0:01:48.4]} 35... Kf8 {[%clk 0:02:21.4]} 36. h4
{[%clk 0:01:30.5]} 36... Rd5 {[%clk 0:02:21.1]} 37. Qc8+ {[%clk 0:01:29]} 37...
Qd8 {[%clk 0:02:22.2]} 38. Qxb7 {[%clk 0:01:27.8]} 38... Rd1+ {[%clk 0:02:23.3]}
39. Kh2 {[%clk 0:01:28.9]} 39... Qxh4# {[%clk 0:02:25.1]} 0-1

[Event "*** Titled Tuesday 3|2 Blitz"]
[Site "Chess.com"]
[Date "2016.03.01"]
[Round "1"]
[White "VerdeNotte"]
[Black "Rickstereo"]
[Result "1-0"]
[WhiteElo "2484"]
[BlackElo "2170"]
[TimeControl "180+2"]
[EndTime "11:05:26 PST"]
[Termination "VerdeNotte won by resignation"]

1. e4 {[%clk 0:02:59.2]} 1... c5 {[%clk 0:02:59.8]} 2. Nc3 {[%clk 0:02:59.1]}
2... Nc6 {[%clk 0:03:00.3]} 3. f4 {[%clk 0:03:00.4]} 3... g6 {[%clk 0:03:00.8]}
4. Nf3 {[%clk 0:03:00.4]} 4... Bg7 {[%clk 0:03:01.9]} 5. Bb5 {[%clk 0:03:01.3]}
5... Nd4 {[%clk 0:03:03]} 6. O-O {[%clk 0:03:02.4]} 6... a6 {[%clk 0:03:04.3]}
7. Bd3 {[%clk 0:03:02.7]} 7... e6 {[%clk 0:02:59.6]} 8. Nxd4 {[%clk 0:03:01.1]}
8... cxd4 {[%clk 0:02:59.9]} 9. Ne2 {[%clk 0:03:02.3]} 9... Ne7 {[%clk
0:03:01.1]} 10. Kh1 {[%clk 0:02:57.3]} 10... O-O {[%clk 0:03:00.9]} 11. b4
{[%clk 0:02:56.3]} 11... Nc6 {[%clk 0:03:00.3]} 12. a3 {[%clk 0:02:56.9]} 12...
b5 {[%clk 0:02:57.3]} 13. Bb2 {[%clk 0:02:56.9]} 13... Bb7 {[%clk 0:02:57.3]}
14. Qe1 {[%clk 0:02:56.7]} 14... f5 {[%clk 0:02:50.6]} 15. Qf2 {[%clk
0:02:48.7]} 15... fxe4 {[%clk 0:02:50.1]} 16. Bxe4 {[%clk 0:02:49.5]} 16... d5
{[%clk 0:02:45.6]} 17. Bf3 {[%clk 0:02:48]} 17... d3 {[%clk 0:02:44.9]} 18. Nd4
{[%clk 0:02:41.9]} 18... dxc2 {[%clk 0:02:38.3]} 19. Nxe6 {[%clk 0:02:41.8]}
19... Bxb2 {[%clk 0:02:36]} 20. Nxd8 {[%clk 0:02:41.7]} 20... Raxd8 {[%clk
0:02:34.3]} 21. Qc5 {[%clk 0:02:40.9]} 21... Bxa1 {[%clk 0:02:26.1]} 22. Bxd5+
{[%clk 0:02:41.4]} 22... Kg7 {[%clk 0:02:17.3]} 23. Rxa1 {[%clk 0:02:40.4]}
23... Rxf4 {[%clk 0:01:48.9]} 24. Bxc6 {[%clk 0:02:22.9]} 24... Rc4 {[%clk
0:01:47.1]} 25. Qe7+ {[%clk 0:02:06.9]} 25... Kh6 {[%clk 0:01:46.1]} 26. Rc1
{[%clk 0:02:03.2]} 26... Rxd2 {[%clk 0:00:49.5]} 27. Qe3+ {[%clk 0:02:02.4]} 1-0

[Event "*** Titled Tuesday 3|2 Blitz"]
[Site "Chess.com"]
[Date "2016.03.01"]
[Round "1"]
[White "Sawyer2908"]
[Black "Dlugy"]
[Result "0-1"]
[WhiteElo "2353"]
[BlackElo "2588"]
[TimeControl "180+2"]
[EndTime "11:05:43 PST"]
[Termination "Dlugy won by resignation"]

1. e4 {[%clk 0:02:59.7]} 1... c5 {[%clk 0:03:00.6]} 2. Nf3 {[%clk 0:03:00.3]}
2... d6 {[%clk 0:03:02]} 3. d4 {[%clk 0:03:01.2]} 3... cxd4 {[%clk 0:03:03.6]}
4. Nxd4 {[%clk 0:03:02.2]} 4... Nf6 {[%clk 0:03:05.3]} 5. Nc3 {[%clk 0:03:03.5]}
5... Nc6 {[%clk 0:03:07]} 6. Bg5 {[%clk 0:03:02.8]} 6... e6 {[%clk 0:03:08.4]}
7. Qd2 {[%clk 0:03:02.4]} 7... a6 {[%clk 0:03:10]} 8. O-O-O {[%clk 0:03:02.9]}
8... h6 {[%clk 0:03:11.5]} 9. Be3 {[%clk 0:02:58.1]} 9... Nxd4 {[%clk
0:03:12.1]} 10. Bxd4 {[%clk 0:02:57.9]} 10... b5 {[%clk 0:03:13]} 11. Bd3 {[%clk
0:02:55]} 11... Be7 {[%clk 0:03:11.7]} 12. Kb1 {[%clk 0:02:53.8]} 12... Bb7
{[%clk 0:03:12.7]} 13. f3 {[%clk 0:02:54.4]} 13... O-O {[%clk 0:03:12.5]} 14. g4
{[%clk 0:02:54.1]} 14... e5 {[%clk 0:03:00.5]} 15. Be3 {[%clk 0:02:51.7]} 15...
b4 {[%clk 0:03:01.8]} 16. Ne2 {[%clk 0:02:40]} 16... d5 {[%clk 0:03:03.2]} 17.
Ng3 {[%clk 0:02:10.7]} 17... dxe4 {[%clk 0:03:03.1]} 18. Nxe4 {[%clk 0:02:01.4]}
18... Bxe4 {[%clk 0:02:55.6]} 19. Bxe4 {[%clk 0:02:02]} 19... Nxe4 {[%clk
0:02:53.2]} 20. fxe4 {[%clk 0:02:00.9]} 20... Qxd2 {[%clk 0:02:52]} 21. Rxd2
{[%clk 0:02:01.6]} 21... Rac8 {[%clk 0:02:36.4]} 22. b3 {[%clk 0:01:56.3]} 22...
Rc3 {[%clk 0:02:31.2]} 23. Rd3 {[%clk 0:01:55.8]} 23... Rfc8 {[%clk 0:02:27.1]}
24. Rc1 {[%clk 0:01:41.6]} 24... Bg5 {[%clk 0:02:17.4]} 25. Bxg5 {[%clk
0:01:33.7]} 25... hxg5 {[%clk 0:02:18.7]} 26. Kb2 {[%clk 0:00:51.7]} 26... f6
{[%clk 0:02:18.2]} 27. h3 {[%clk 0:00:48.4]} 27... R8c6 {[%clk 0:02:05.4]} 28.
a4 {[%clk 0:00:41.5]} 28... bxa3+ {[%clk 0:02:04.7]} 0-1

[Event "*** Titled Tuesday 3|2 Blitz"]
[Site "Chess.com"]
[Date "2016.03.01"]
[Round "1"]
[White "Tirantes"]
[Black "Boryboy"]
[Result "0-1"]
[WhiteElo "2230"]
[BlackElo "2493"]
[TimeControl "180+2"]
[EndTime "11:05:53 PST"]
[Termination "Boryboy won by resignation"]

1. c4 {[%clk 0:02:59.9]} 1... e6 {[%clk 0:02:39.7]} 2. g3 {[%clk 0:02:56.3]}
2... d5 {[%clk 0:02:39.6]} 3. Bg2 {[%clk 0:02:55.9]} 3... Nf6 {[%clk 0:02:39.4]}
4. Nf3 {[%clk 0:02:56]} 4... Be7 {[%clk 0:02:39.1]} 5. b3 {[%clk 0:02:55.4]}
5... Nbd7 {[%clk 0:02:39.3]} 6. Bb2 {[%clk 0:02:54.1]} 6... a5 {[%clk
0:02:40.3]} 7. Nc3 {[%clk 0:02:50]} 7... c6 {[%clk 0:02:40.4]} 8. O-O {[%clk
0:02:47.9]} 8... O-O {[%clk 0:02:41.5]} 9. Qc2 {[%clk 0:02:41.7]} 9... Re8
{[%clk 0:02:35.2]} 10. e4 {[%clk 0:02:37.4]} 10... dxe4 {[%clk 0:02:26.6]} 11.
Ng5 {[%clk 0:02:33.7]} 11... e5 {[%clk 0:02:22.1]} 12. Ngxe4 {[%clk 0:02:26.7]}
12... Nxe4 {[%clk 0:02:20.8]} 13. Nxe4 {[%clk 0:02:25.3]} 13... Nc5 {[%clk
0:02:19.6]} 14. Rad1 {[%clk 0:02:09.4]} 14... Nd3 {[%clk 0:02:13.8]} 15. Bc3
{[%clk 0:02:07.7]} 15... Bf5 {[%clk 0:02:12.7]} 16. Qb1 {[%clk 0:01:52.4]} 16...
Bg6 {[%clk 0:02:13.3]} 17. Ba1 {[%clk 0:01:39.6]} 17... f5 {[%clk 0:02:13.7]}
18. Nc3 {[%clk 0:01:38]} 18... e4 {[%clk 0:02:12.5]} 19. Ne2 {[%clk 0:01:33.9]}
19... Bc5 {[%clk 0:02:12.7]} 20. Nf4 {[%clk 0:01:24.2]} 20... Nxf4 {[%clk
0:02:12.8]} 21. gxf4 {[%clk 0:01:24.2]} 21... Bh5 {[%clk 0:02:14.1]} 22. Rde1
{[%clk 0:01:19.2]} 22... Qxd2 {[%clk 0:02:15.1]} 23. Qb2 {[%clk 0:01:12.5]}
23... Qxb2 {[%clk 0:02:16.2]} 24. Bxb2 {[%clk 0:01:13.3]} 24... Rad8 {[%clk
0:02:17.8]} 25. Be5 {[%clk 0:01:07.8]} 25... Rd2 {[%clk 0:02:18.7]} 26. a4
{[%clk 0:01:04.8]} 26... Be2 {[%clk 0:02:19.7]} 27. Rxe2 {[%clk 0:00:59]} 27...
Rxe2 {[%clk 0:02:20.7]} 28. Rd1 {[%clk 0:00:59.3]} 28... Rxf2 {[%clk 0:02:20.7]}
29. Kh1 {[%clk 0:00:54.5]} 29... e3 {[%clk 0:02:22]} 30. Kg1 {[%clk 0:00:35.1]}
30... e2 {[%clk 0:02:19.9]} 0-1

[Event "*** Titled Tuesday 3|2 Blitz"]
[Site "Chess.com"]
[Date "2016.03.01"]
[Round "1"]
[White "Mischuk_D"]
[Black "stepanosinovsky"]
[Result "1-0"]
[WhiteElo "2526"]
[BlackElo "2276"]
[TimeControl "180+2"]
[EndTime "11:06:19 PST"]
[Termination "Mischuk_D won by resignation"]

1. e4 {[%clk 0:02:48.2]} 1... e5 {[%clk 0:02:59.9]} 2. Nf3 {[%clk 0:02:49]} 2...
Nc6 {[%clk 0:03:00.9]} 3. Bb5 {[%clk 0:02:49.8]} 3... a6 {[%clk 0:03:02.1]} 4.
Ba4 {[%clk 0:02:50.2]} 4... Nf6 {[%clk 0:03:03.3]} 5. O-O {[%clk 0:02:51.1]}
5... Be7 {[%clk 0:03:04.9]} 6. Re1 {[%clk 0:02:51.7]} 6... b5 {[%clk 0:03:06.5]}
7. Bb3 {[%clk 0:02:52.1]} 7... O-O {[%clk 0:03:08.4]} 8. h3 {[%clk 0:02:52.8]}
8... Bb7 {[%clk 0:03:08.2]} 9. d3 {[%clk 0:02:53.7]} 9... Re8 {[%clk 0:03:07.9]}
10. a3 {[%clk 0:02:54.3]} 10... Bf8 {[%clk 0:03:07.1]} 11. Nc3 {[%clk
0:02:54.4]} 11... Nd4 {[%clk 0:02:44.4]} 12. Ba2 {[%clk 0:02:50.4]} 12... h6
{[%clk 0:02:21.1]} 13. Nxd4 {[%clk 0:02:49]} 13... exd4 {[%clk 0:02:22]} 14. Ne2
{[%clk 0:02:50.1]} 14... c5 {[%clk 0:02:19]} 15. Ng3 {[%clk 0:02:48.3]} 15... d5
{[%clk 0:02:11.1]} 16. e5 {[%clk 0:02:48.5]} 16... Nd7 {[%clk 0:01:58.8]} 17. f4
{[%clk 0:02:48.7]} 17... g6 {[%clk 0:01:58.5]} 18. Bd2 {[%clk 0:02:47.6]} 18...
Bg7 {[%clk 0:01:57.7]} 19. Qg4 {[%clk 0:02:48.2]} 19... h5 {[%clk 0:01:50.9]}
20. Qf3 {[%clk 0:02:49.1]} 20... Nf8 {[%clk 0:01:49.2]} 21. Re2 {[%clk
0:02:34.6]} 21... h4 {[%clk 0:01:39.3]} 22. Nh1 {[%clk 0:02:34.2]} 22... Qd7
{[%clk 0:01:29.4]} 23. Nf2 {[%clk 0:02:32.4]} 23... Rad8 {[%clk 0:01:29.6]} 24.
Rae1 {[%clk 0:02:32.3]} 24... Qf5 {[%clk 0:01:28.8]} 25. Ng4 {[%clk 0:02:30.4]}
25... Ne6 {[%clk 0:01:22.9]} 26. Qf2 {[%clk 0:02:30.1]} 26... c4 {[%clk
0:01:23]} 27. Qxh4 {[%clk 0:02:24.8]} 27... c3 {[%clk 0:00:21.9]} 28. bxc3
{[%clk 0:02:24.1]} 28... dxc3 {[%clk 0:00:23]} 29. Bc1 {[%clk 0:02:25.1]} 29...
Nd4 {[%clk 0:00:22.6]} 30. Rf2 {[%clk 0:02:26.2]} 30... Re6 {[%clk 0:00:21.3]}
31. Ref1 {[%clk 0:02:23.7]} 31... Qh5 {[%clk 0:00:19.5]} 32. Qxd8+ {[%clk
0:02:24.1]} 32... Kh7 {[%clk 0:00:19.9]} 33. Qd7 {[%clk 0:02:24.5]} 33... Bc6
{[%clk 0:00:19.6]} 34. Qxf7 {[%clk 0:02:25.4]} 34... Be8 {[%clk 0:00:17.1]} 35.
Qa7 {[%clk 0:02:22.6]} 35... Nf5 {[%clk 0:00:17.1]} 36. Nf6+ {[%clk 0:02:23.5]}
1-0

[Event "*** Titled Tuesday 3|2 Blitz"]
[Site "Chess.com"]
[Date "2016.03.01"]
[Round "1"]
[White "Smirnov_Pavel"]
[Black "Journey_to_GrandMaster_YT"]
[Result "1-0"]
[WhiteElo "2515"]
[BlackElo "2270"]
[TimeControl "180+2"]
[EndTime "11:06:29 PST"]
[Termination "Smirnov_Pavel won by checkmate"]

1. d4 {[%clk 0:03:01.2]} 1... Nf6 {[%clk 0:03:00.3]} 2. c4 {[%clk 0:03:01.6]}
2... g6 {[%clk 0:03:01.2]} 3. Nc3 {[%clk 0:03:01.5]} 3... Bg7 {[%clk 0:03:02.2]}
4. g3 {[%clk 0:03:01.6]} 4... d6 {[%clk 0:03:00.3]} 5. Bg2 {[%clk 0:03:01.8]}
5... O-O {[%clk 0:02:51.1]} 6. Nf3 {[%clk 0:03:02.6]} 6... Nc6 {[%clk
0:02:37.5]} 7. O-O {[%clk 0:03:02.5]} 7... Bf5 {[%clk 0:02:38.7]} 8. Ne1 {[%clk
0:03:02.8]} 8... e5 {[%clk 0:02:18.7]} 9. d5 {[%clk 0:03:01.8]} 9... Ne7 {[%clk
0:02:18.6]} 10. e4 {[%clk 0:03:01.8]} 10... Bd7 {[%clk 0:02:16.7]} 11. Nd3
{[%clk 0:03:01.8]} 11... Ne8 {[%clk 0:02:14.4]} 12. c5 {[%clk 0:02:56.7]} 12...
f5 {[%clk 0:02:14.6]} 13. f3 {[%clk 0:02:57.1]} 13... dxc5 {[%clk 0:02:07.6]}
14. Nxc5 {[%clk 0:02:57.3]} 14... Nd6 {[%clk 0:02:08.6]} 15. Bg5 {[%clk
0:02:56.3]} 15... h6 {[%clk 0:02:08.4]} 16. Be3 {[%clk 0:02:57.1]} 16... b6
{[%clk 0:02:04.7]} 17. Nxd7 {[%clk 0:02:55.5]} 17... Qxd7 {[%clk 0:02:05.4]} 18.
Rc1 {[%clk 0:02:55.8]} 18... Rac8 {[%clk 0:02:03.7]} 19. Qd3 {[%clk 0:02:54.4]}
19... c5 {[%clk 0:02:01.4]} 20. dxc6 {[%clk 0:02:54.4]} 20... Rxc6 {[%clk
0:02:01.7]} 21. Rfd1 {[%clk 0:02:51.1]} 21... Qe6 {[%clk 0:01:57.4]} 22. Bf2
{[%clk 0:02:23]} 22... f4 {[%clk 0:01:55.9]} 23. a4 {[%clk 0:02:14.7]} 23... Nc4
{[%clk 0:01:52.8]} 24. Nd5 {[%clk 0:02:11.9]} 24... Rfc8 {[%clk 0:01:28.9]} 25.
Bh3 {[%clk 0:02:11.9]} 25... Qxh3 {[%clk 0:01:18.5]} 26. Nxe7+ {[%clk
0:02:12.6]} 26... Kh7 {[%clk 0:01:19.6]} 27. Nxc6 {[%clk 0:02:07.5]} 27... Nxb2
{[%clk 0:01:20.1]} 28. Qd7 {[%clk 0:02:07.4]} 28... Qh5 {[%clk 0:00:58.7]} 29.
Qxc8 {[%clk 0:01:58.1]} 29... fxg3 {[%clk 0:00:56]} 30. hxg3 {[%clk 0:01:57.8]}
30... Nxd1 {[%clk 0:00:55.4]} 31. Ne7 {[%clk 0:01:55.1]} 31... Qxf3 {[%clk
0:00:23.8]} 32. Qg8# {[%clk 0:01:52.5]} 1-0

[Event "*** Titled Tuesday 3|2 Blitz"]
[Site "Chess.com"]
[Date "2016.03.01"]
[Round "1"]
[White "FairChess_on_YouTube"]
[Black "Winehouse83"]
[Result "1-0"]
[WhiteElo "2708"]
[BlackElo "2356"]
[TimeControl "180+2"]
[EndTime "11:06:43 PST"]
[Termination "FairChess_on_YouTube won by resignation"]

1. d4 {[%clk 0:02:58.5]} 1... Nf6 {[%clk 0:02:59.2]} 2. c4 {[%clk 0:02:59.1]}
2... c6 {[%clk 0:02:59.7]} 3. Nf3 {[%clk 0:02:57.8]} 3... d5 {[%clk 0:03:00.9]}
4. Nc3 {[%clk 0:02:59.2]} 4... dxc4 {[%clk 0:03:01.4]} 5. a4 {[%clk 0:02:59.5]}
5... Bg4 {[%clk 0:03:01.8]} 6. Ne5 {[%clk 0:02:57.6]} 6... Nbd7 {[%clk
0:03:02.9]} 7. Nxg4 {[%clk 0:02:54.2]} 7... Nxg4 {[%clk 0:03:03.9]} 8. e4 {[%clk
0:02:54.5]} 8... e5 {[%clk 0:03:04.8]} 9. Qxg4 {[%clk 0:02:35.2]} 9... exd4
{[%clk 0:03:05.8]} 10. Na2 {[%clk 0:02:27.5]} 10... Qa5+ {[%clk 0:03:02]} 11.
Bd2 {[%clk 0:02:24]} 11... Qxa4 {[%clk 0:02:54.5]} 12. Be2 {[%clk 0:02:18.5]}
12... d3 {[%clk 0:02:45.1]} 13. Bd1 {[%clk 0:02:18]} 13... Qa6 {[%clk
0:02:39.6]} 14. O-O {[%clk 0:02:17.2]} 14... Nf6 {[%clk 0:01:58.9]} 15. Qg3
{[%clk 0:02:06.9]} 15... O-O-O {[%clk 0:01:19.8]} 16. Bg4+ {[%clk 0:01:59.5]}
16... Nxg4 {[%clk 0:01:15.2]} 17. Nc3 {[%clk 0:01:57.5]} 17... Qb6 {[%clk
0:01:08]} 18. Qxg4+ {[%clk 0:01:58.8]} 18... Kb8 {[%clk 0:01:08.7]} 19. Be3
{[%clk 0:01:56.7]} 19... c5 {[%clk 0:00:40.3]} 20. Nd5 {[%clk 0:01:52]} 20...
Qe6 {[%clk 0:00:37.8]} 21. Qf3 {[%clk 0:01:46.8]} 21... Bd6 {[%clk 0:00:33.9]}
22. Rfc1 {[%clk 0:01:43.5]} 22... b5 {[%clk 0:00:33.3]} 23. Ra5 {[%clk
0:01:43.6]} 23... Qd7 {[%clk 0:00:31.4]} 24. Nc3 {[%clk 0:01:41.9]} 24... d2
{[%clk 0:00:28.6]} 25. Bxd2 {[%clk 0:01:36.2]} 25... Bxh2+ {[%clk 0:00:26.1]}
26. Kxh2 {[%clk 0:01:36.9]} 26... Qxd2 {[%clk 0:00:27.6]} 27. Rxb5+ {[%clk
0:01:37.1]} 27... Kc7 {[%clk 0:00:22.4]} 28. Rxc5+ {[%clk 0:01:36.2]} 28... Kb8
{[%clk 0:00:23.1]} 29. Rb5+ {[%clk 0:01:36.2]} 29... Kc7 {[%clk 0:00:24.1]} 30.
Nd5+ {[%clk 0:01:34.1]} 30... Rxd5 {[%clk 0:00:22.7]} 31. Rxc4+ {[%clk
0:01:32.8]} 31... Kd6 {[%clk 0:00:18.3]} 32. Rxd5+ {[%clk 0:01:33.2]} 1-0

[Event "*** Titled Tuesday 3|2 Blitz"]
[Site "Chess.com"]
[Date "2016.03.01"]
[Round "1"]
[White "VSERGUEI"]
[Black "Andrejkin"]
[Result "1-0"]
[WhiteElo "2455"]
[BlackElo "2125"]
[TimeControl "180+2"]
[EndTime "11:07:46 PST"]
[Termination "VSERGUEI won by resignation"]

1. d4 {[%clk 0:03:00.9]} 1... d5 {[%clk 0:02:54.6]} 2. c4 {[%clk 0:03:01.2]}
2... e6 {[%clk 0:02:51.4]} 3. Nc3 {[%clk 0:03:01.3]} 3... Nf6 {[%clk 0:02:50.4]}
4. cxd5 {[%clk 0:03:01.5]} 4... exd5 {[%clk 0:02:49.6]} 5. Bg5 {[%clk
0:03:01.3]} 5... c6 {[%clk 0:02:49.6]} 6. e3 {[%clk 0:03:02.1]} 6... Be7 {[%clk
0:02:48.8]} 7. Qc2 {[%clk 0:03:01.9]} 7... O-O {[%clk 0:02:49.4]} 8. Bd3 {[%clk
0:03:01.8]} 8... Nbd7 {[%clk 0:02:47.7]} 9. Nf3 {[%clk 0:03:01.6]} 9... Re8
{[%clk 0:02:47.4]} 10. O-O {[%clk 0:03:01.7]} 10... Nf8 {[%clk 0:02:47.3]} 11.
h3 {[%clk 0:03:01.7]} 11... Be6 {[%clk 0:02:40.3]} 12. a3 {[%clk 0:03:00.5]}
12... N6d7 {[%clk 0:02:39.8]} 13. Bf4 {[%clk 0:03:00]} 13... c5 {[%clk
0:02:38.9]} 14. Nb5 {[%clk 0:02:49.7]} 14... c4 {[%clk 0:02:32.3]} 15. Be2
{[%clk 0:02:38.2]} 15... Ng6 {[%clk 0:02:24.5]} 16. Bc7 {[%clk 0:02:28.6]} 16...
Qc8 {[%clk 0:02:23.3]} 17. Bh2 {[%clk 0:02:28.5]} 17... Qc6 {[%clk 0:02:18.9]}
18. Nc7 {[%clk 0:02:27.8]} 18... Rac8 {[%clk 0:02:17.6]} 19. Nxe8 {[%clk
0:02:28.1]} 19... Rxe8 {[%clk 0:02:17.7]} 20. b3 {[%clk 0:02:27.1]} 20... b5
{[%clk 0:02:17.6]} 21. a4 {[%clk 0:02:27.5]} 21... b4 {[%clk 0:02:16]} 22. Rac1
{[%clk 0:02:14.2]} 22... Rc8 {[%clk 0:02:10.6]} 23. Rfd1 {[%clk 0:02:12.4]}
23... Nf6 {[%clk 0:02:02.8]} 24. Ne5 {[%clk 0:02:08.1]} 24... Nxe5 {[%clk
0:01:59.3]} 25. dxe5 {[%clk 0:02:06.3]} 25... Nd7 {[%clk 0:01:44]} 26. e4 {[%clk
0:01:58.8]} 26... c3 {[%clk 0:01:38.8]} 27. Bb5 {[%clk 0:01:44.4]} 27... Qb7
{[%clk 0:01:35.2]} 28. exd5 {[%clk 0:01:41.5]} 28... Bxd5 {[%clk 0:01:32.6]} 29.
Rxd5 {[%clk 0:01:41]} 29... Qxd5 {[%clk 0:01:30.1]} 30. Rd1 {[%clk 0:01:40.9]}
30... Qxd1+ {[%clk 0:01:19.6]} 31. Qxd1 {[%clk 0:01:40.6]} 31... Nc5 {[%clk
0:01:17.1]} 32. Bc4 {[%clk 0:01:32.2]} 32... Nxa4 {[%clk 0:01:13.3]} 33. Qd5
{[%clk 0:01:26]} 33... c2 {[%clk 0:01:04.9]} 34. Qxf7+ {[%clk 0:01:25.8]} 34...
Kh8 {[%clk 0:01:04.2]} 35. Bf4 {[%clk 0:01:25.8]} 35... Nb6 {[%clk 0:00:47.9]}
36. Qxe7 {[%clk 0:01:20.3]} 36... Nxc4 {[%clk 0:00:47.9]} 37. bxc4 {[%clk
0:01:19.6]} 37... b3 {[%clk 0:00:48.4]} 38. Bc1 {[%clk 0:01:18.1]} 38... h6
{[%clk 0:00:46.1]} 39. e6 {[%clk 0:01:11.2]} 39... Rxc4 {[%clk 0:00:44.1]} 40.
Qd8+ {[%clk 0:01:07.1]} 40... Kh7 {[%clk 0:00:42.9]} 41. Qd3+ {[%clk 0:01:06.2]}
1-0